fUSD/lending_fUSD_20240212
["ID","MTS","AMOUNT","RATE_DAILY","PERIOD"]
[313792349,1707724330236,-151.0,0.00027397,7]
[313792350,1707724330245,-202.178955,0.00027397,7]
[313792351,1707724330254,-217.698865,0.00027397,7]
[313792352,1707724330263,-217.698865,0.00027397,7]
[313792353,1707724330272,-217.698865,0.00027397,7]
[313792354,1707724330282,-217.698865,0.00027397,7]
[313792355,1707724330291,-217.698865,0.00027397,7]
[313792356,1707724330299,-217.698865,0.00027397,7]
[313792357,1707724330308,-217.698865,0.00027397,7]
[313792358,1707724330317,-217.698865,0.00027397,7]
[313792359,1707724330326,-217.698865,0.00027397,7]
[313792360,1707724330335,-217.698865,0.00027397,7]
[313792361,1707724330344,-217.698865,0.00027397,7]
[313792362,1707724330354,-217.698865,0.00027397,7]
[313792363,1707724330363,-217.698865,0.00027397,7]
[313792364,1707724330372,-217.698865,0.00027397,7]
[313792365,1707724330381,-217.698865,0.00027397,7]
[313792366,1707724330391,-217.698865,0.00027397,7]
[313792367,1707724330400,-217.698865,0.00027397,7]
[313792368,1707724330410,-217.698865,0.00027397,7]
[313792369,1707724330420,-217.698865,0.00027397,7]
[313792370,1707724330433,-217.698859,0.00027397,7]
[313792371,1707724330451,-151.0,0.00027397,7]
[313792372,1707724330469,-151.0,0.00027397,7]
[313792373,1707724330479,-151.0,0.00027397,7]
[313792374,1707724330489,-151.0,0.00027397,7]
[313792375,1707724330499,-410.927345,0.00027397,7]
[313792376,1707724330509,-151.0,0.00027397,7]
[313792377,1707724330518,-410.927345,0.00027397,7]
[313792378,1707724330528,-151.827131,0.00027397,7]
[313792379,1707724330538,-410.927345,0.00027397,7]
[313792380,1707724330548,-410.927345,0.00027397,7]
[313792381,1707724330557,-410.927345,0.00027397,7]
[313792382,1707724330566,-410.927345,0.00027397,7]
[313792383,1707724330575,-410.927345,0.00027397,7]
[313792384,1707724330585,-410.927345,0.00027397,7]
[313792385,1707724330594,-410.927345,0.00027397,7]
[313792386,1707724330604,-410.927345,0.00027397,7]
[313792387,1707724330615,-410.927345,0.00027397,7]
[313792388,1707724330625,-410.927345,0.00027397,7]
[313792389,1707724330633,-410.927345,0.00027397,7]
[313792390,1707724330643,-410.927345,0.00027397,7]
[313792391,1707724330651,-410.927345,0.00027397,7]
[313792392,1707724330661,-410.927345,0.00027397,7]
[313792393,1707724330670,-410.927345,0.00027397,7]
[313792394,1707724330679,-410.927345,0.00027397,7]
[313792395,1707724330688,-410.927345,0.00027397,7]
[313792396,1707724330697,-410.927345,0.00027397,7]
[313792397,1707724330707,-220.229076,0.00027397,7]
[313792398,1707724330716,-220.229076,0.00027397,7]
[313792399,1707724330724,-220.229076,0.00027397,7]
[313792400,1707724330733,-220.229076,0.00027397,7]
[313792401,1707724330743,-220.229076,0.00027397,7]
[313792402,1707724330752,-220.229076,0.00027397,7]
[313792403,1707724330761,-220.229076,0.00027397,7]
[313792404,1707724330770,-220.229076,0.00027397,7]
[313792405,1707724330780,-220.229076,0.00027397,7]
[313792406,1707724330789,-220.229076,0.00027397,7]
[313792407,1707724330798,-220.229076,0.00027397,7]
[313792408,1707724330807,-220.229076,0.00027397,7]
[313792409,1707724330817,-220.229076,0.00027397,7]
[313792410,1707724330827,-220.229076,0.00027397,7]
[313792411,1707724330835,-220.229076,0.00027397,7]
[313792412,1707724330844,-220.229076,0.00027397,7]
[313792413,1707724330853,-220.229076,0.00027397,7]
[313792414,1707724330861,-220.229076,0.00027397,7]
[313792415,1707724330870,-220.229076,0.00027397,7]
[313792416,1707724330879,-220.22907,0.00027397,7]
[313792417,1707724330888,-151.0,0.00027397,7]
[313792418,1707724330897,-151.0,0.00027397,7]
[313792419,1707724330906,-151.0,0.00027397,7]
[313792420,1707724330915,-151.0,0.00027397,7]
[313792421,1707724330924,-229.201131,0.00027397,7]
[313792422,1707724330933,-357.382179,0.00027397,7]
[313792423,1707724330942,-357.382179,0.00027397,7]
[313792424,1707724330951,-357.382179,0.00027397,7]
[313792425,1707724330961,-357.382179,0.00027397,7]
[313792426,1707724330970,-357.382179,0.00027397,7]
[313792427,1707724330979,-357.382179,0.00027397,7]
[313792428,1707724330988,-357.382179,0.00027397,7]
[313792429,1707724330997,-357.382179,0.00027397,7]
[313792430,1707724331007,-357.382179,0.00027397,7]
[313792431,1707724331015,-357.382179,0.00027397,7]
[313792432,1707724331025,-357.382179,0.00027397,7]
[313792433,1707724331034,-357.382179,0.00027397,7]
[313792434,1707724331043,-357.382179,0.00027397,7]
[313792435,1707724331054,-357.382179,0.00027397,7]
[313792436,1707724331064,-357.382179,0.00027397,7]
[313792437,1707724331073,-151.0,0.00027397,7]
[313792438,1707724331082,-357.382179,0.00027397,7]
[313792439,1707724331092,-357.382179,0.00027397,7]
[313792440,1707724331101,-151.0,0.00027397,7]
[313792441,1707724331110,-357.382179,0.00027397,7]
[313792442,1707724331120,-151.0,0.00027397,7]
[313792443,1707724331129,-357.382179,0.00027397,7]
[313792444,1707724331138,-151.0,0.00027397,7]
[313792445,1707724331148,-357.382173,0.00027397,7]
[313792446,1707724331156,-151.0,0.00027397,7]
[313792447,1707724331165,-151.0,0.00027397,7]
[313792448,1707724331174,-151.0,0.00027397,7]
[313792449,1707724331183,-151.0,0.00027397,7]
[313792450,1707724331191,-158.419069,0.00027397,7]
[313792451,1707724331199,-327.712735,0.00027397,7]
[313792452,1707724331207,-327.712735,0.00027397,7]
[313792453,1707724331216,-327.712735,0.00027397,7]
[313792454,1707724331225,-327.712735,0.00027397,7]
[313792455,1707724331234,-327.712735,0.00027397,7]
[313792456,1707724331242,-327.712735,0.00027397,7]
[313792457,1707724331251,-327.712735,0.00027397,7]
[313792458,1707724331260,-327.712735,0.00027397,7]
[313792459,1707724331269,-327.712735,0.00027397,7]
[313792460,1707724331278,-327.712735,0.00027397,7]
[313792461,1707724331287,-151.0,0.00027397,7]
[313792462,1707724331296,-327.712735,0.00027397,7]
[313792463,1707724331306,-327.712735,0.00027397,7]
[313792464,1707724331314,-151.0,0.00027397,7]
[313792465,1707724331324,-463.448645,0.00027397,7]
[313792466,1707724331333,-151.0,0.00027397,7]
[313792467,1707724331342,-327.712735,0.00027397,7]
[313792468,1707724331351,-463.448645,0.00027397,7]
[313792469,1707724331360,-151.0,0.00027397,7]
[313792470,1707724331369,-327.712735,0.00027397,7]
[313792471,1707724331378,-463.448645,0.00027397,7]
[313792472,1707724331387,-327.712735,0.00027397,7]
[313792473,1707724331396,-151.0,0.00027397,7]
[313792474,1707724331405,-327.712735,0.00027397,7]
[313792475,1707724331414,-463.448645,0.00027397,7]
[313792476,1707724331422,-151.0,0.00027397,7]
[313792477,1707724331434,-327.712735,0.00027397,7]
[313792478,1707724331442,-151.0,0.00027397,7]
[313792479,1707724331452,-463.448645,0.00027397,7]
[313792480,1707724331461,-327.712735,0.00027397,7]
[313792481,1707724331471,-151.0,0.00027397,7]
[313792482,1707724331480,-463.448645,0.00027397,7]
[313792483,1707724331489,-327.712735,0.00027397,7]
[313792484,1707724331498,-151.0,0.00027397,7]
[313792485,1707724331508,-463.448645,0.00027397,7]
[313792486,1707724331519,-327.712742,0.00027397,7]
[313792487,1707724331529,-463.448645,0.00027397,7]
[313792488,1707724331538,-151.0,0.00027397,7]
[313792489,1707724331547,-463.448645,0.00027397,7]
[313792490,1707724331557,-151.0,0.00027397,7]
[313792491,1707724331566,-463.448645,0.00027397,7]
[313792492,1707724331576,-151.0,0.00027397,7]
[313792493,1707724331585,-463.448645,0.00027397,7]
[313792494,1707724331595,-463.448645,0.00027397,7]
[313792495,1707724331605,-463.448645,0.00027397,7]
[313792496,1707724331615,-151.0,0.00027397,7]
[313792497,1707724331624,-463.448645,0.00027397,7]
[313792498,1707724331634,-151.0,0.00027397,7]
[313792499,1707724331643,-463.448645,0.00027397,7]
[313792500,1707724331652,-296.829925,0.00027397,7]
[313792501,1707724331661,-463.448645,0.00027397,7]
[313792502,1707724331671,-463.448645,0.00027397,7]
[313792503,1707724331680,-463.448645,0.00027397,7]
[313792504,1707724331690,-463.448645,0.00027397,7]
[313792505,1707724331700,-463.448649,0.00027397,7]
[313792506,1707724331709,-151.0,0.00027397,7]
[313792507,1707724331718,-151.0,0.00027397,7]
[313792508,1707724331728,-151.0,0.00027397,7]
[313792509,1707724331737,-357.490761,0.00027397,7]
[313792510,1707724331747,-151.0,0.00027397,7]
[313792511,1707724331755,-357.490761,0.00027397,7]
[313792512,1707724331764,-151.0,0.00027397,7]
[313792513,1707724331774,-357.490761,0.00027397,7]
[313792514,1707724331783,-151.0,0.00027397,7]
[313792515,1707724331793,-357.490761,0.00027397,7]
[313792516,1707724331802,-151.0,0.00027397,7]
[313792517,1707724331811,-357.490761,0.00027397,7]
[313792518,1707724331821,-151.0,0.00027397,7]
[313792519,1707724331830,-357.490761,0.00027397,7]
[313792520,1707724331839,-151.0,0.00027397,7]
[313792521,1707724331848,-357.490761,0.00027397,7]
[313792522,1707724331857,-151.0,0.00027397,7]
[313792523,1707724331865,-357.490761,0.00027397,7]
[313792524,1707724331875,-151.0,0.00027397,7]
[313792525,1707724331884,-151.0,0.00027397,7]
[313792526,1707724331894,-357.490761,0.00027397,7]
[313792527,1707724331903,-161.290613,0.00027397,7]
[313792528,1707724331912,-151.0,0.00027397,7]
[313792529,1707724331921,-151.0,0.00027397,7]
[313792530,1707724331931,-357.490761,0.00027397,7]
[313792531,1707724331939,-151.0,0.00027397,7]
[313792532,1707724331948,-357.490761,0.00027397,7]
[313792533,1707724331957,-151.0,0.00027397,7]
[313792534,1707724331966,-357.490761,0.00027397,7]
[313792535,1707724331975,-151.0,0.00027397,7]
[313792536,1707724331984,-357.490761,0.00027397,7]
[313792537,1707724331993,-151.0,0.00027397,7]
[313792538,1707724332002,-357.490761,0.00027397,7]
[313792539,1707724332012,-151.0,0.00027397,7]
[313792540,1707724332022,-151.0,0.00027397,7]
[313792541,1707724332031,-151.0,0.00027397,7]
[313792542,1707724332041,-357.490761,0.00027397,7]
[313792543,1707724332051,-151.0,0.00027397,7]
[313792544,1707724332060,-169.563032,0.00027397,7]
[313792545,1707724332069,-357.490761,0.00027397,7]
[313792546,1707724332078,-357.490761,0.00027397,7]
[313792547,1707724332087,-357.490761,0.00027397,7]
[313792548,1707724332097,-151.0,0.00027397,7]
[313792549,1707724332106,-357.490761,0.00027397,7]
[313792550,1707724332115,-151.0,0.00027397,7]
[313792551,1707724332124,-357.490758,0.00027397,7]
[313792552,1707724332133,-151.0,0.00027397,7]
[313792553,1707724332142,-151.0,0.00027397,7]
[313792554,1707724332151,-151.0,0.00027397,7]
[313792555,1707724332161,-241.97691,0.00027397,7]
[313792556,1707724332170,-502.146144,0.00027397,2]
[313792557,1707724332179,-502.146144,0.00027397,2]
[313792558,1707724332188,-502.146144,0.00027397,2]
[313792559,1707724332198,-502.146144,0.00027397,2]
[313792560,1707724332207,-502.146144,0.00027397,2]
[313792561,1707724332216,-502.146144,0.00027397,2]
[313792562,1707724332225,-502.146144,0.00027397,2]
[313792563,1707724332234,-502.146144,0.00027397,2]
[313792564,1707724332243,-502.146144,0.00027397,2]
[313792565,1707724332252,-502.146144,0.00027397,2]
[313792566,1707724332262,-502.146144,0.00027397,2]
[313792567,1707724332271,-502.146144,0.00027397,2]
[313792568,1707724332280,-502.146144,0.00027397,2]
[313792569,1707724332290,-502.146144,0.00027397,2]
[313792570,1707724332298,-502.146144,0.00027397,2]
[313792571,1707724332307,-502.146144,0.00027397,2]
[313792572,1707724332316,-502.146144,0.00027397,2]
[313792573,1707724332326,-502.146144,0.00027397,2]
[313792574,1707724332335,-502.146144,0.00027397,2]
[313792575,1707724332344,-502.146142,0.00027397,2]
[313792576,1707724332353,-151.0,0.00027397,7]
[313792577,1707724332363,-151.0,0.00027397,7]
[313792578,1707724332372,-151.0,0.00027397,7]
[313792579,1707724332381,-151.0,0.00027397,7]
[313792580,1707724332390,-151.0,0.00027397,7]
[313792581,1707724332399,-151.0,0.00027397,7]
[313792582,1707724332408,-152.898541,0.00027397,7]
[313792583,1707724332418,-151.0,0.00027397,7]
[313792584,1707724332429,-151.0,0.00027397,7]
[313792585,1707724332442,-156.044538,0.00027397,7]
[313792586,1707724332451,-1323.63162,0.00027397,7]
[313792587,1707724332460,-1323.63162,0.00027397,7]
[313792588,1707724332470,-1323.63162,0.00027397,7]
[313792589,1707724332480,-1323.63162,0.00027397,7]
[313792590,1707724332490,-1323.63162,0.00027397,7]
[313792591,1707724332499,-1323.63162,0.00027397,7]
[313792592,1707724332510,-1323.63162,0.00027397,7]
[313792593,1707724332519,-1323.63162,0.00027397,7]
[313792594,1707724332529,-1323.63162,0.00027397,7]
[313792595,1707724332538,-151.0,0.00027397,7]
[313792596,1707724332548,-1323.63162,0.00027397,7]
[313792597,1707724332557,-151.0,0.00027397,7]
[313792598,1707724332567,-1323.63162,0.00027397,7]
[313792599,1707724332576,-152.195522,0.00027397,7]
[313792600,1707724332586,-1323.63162,0.00027397,7]
[313792601,1707724332596,-1323.63162,0.00027397,7]
[313792602,1707724332606,-1323.63162,0.00027397,7]
[313792603,1707724332615,-1323.63162,0.00027397,7]
[313792604,1707724332624,-1323.63162,0.00027397,7]
[313792605,1707724332633,-1323.63162,0.00027397,7]
[313792606,1707724332642,-1323.63162,0.00027397,7]
[313792607,1707724332652,-1323.63162,0.00027397,7]
[313792608,1707724332661,-1323.631625,0.00027397,7]
[313792609,1707724332671,-266.823825,0.00027397,7]
[313792610,1707724332680,-266.823825,0.00027397,7]
[313792611,1707724332690,-266.823825,0.00027397,7]
[313792612,1707724332699,-266.823829,0.00027397,7]
[313792613,1707724332708,-151.0,0.00027397,7]
[313792614,1707724332717,-151.0,0.00027397,7]
[313792615,1707724332727,-151.0,0.00027397,7]
[313792616,1707724332736,-151.0,0.00027397,7]
[313792617,1707724332745,-151.0,0.00027397,7]
[313792618,1707724332754,-151.0,0.00027397,7]
[313792619,1707724332763,-151.0,0.00027397,7]
[313792620,1707724332772,-151.0,0.00027397,7]
[313792621,1707724332781,-151.0,0.00027397,7]
[313792622,1707724332790,-151.0,0.00027397,7]
[313792623,1707724332799,-151.0,0.00027397,7]
[313792624,1707724332809,-151.0,0.00027397,7]
[313792625,1707724332818,-151.0,0.00027397,7]
[313792626,1707724332828,-179.251373,0.00027397,7]
[313792627,1707724332837,-151.0,0.00027397,7]
[313792628,1707724332847,-151.0,0.00027397,7]
[313792629,1707724332856,-151.0,0.00027397,7]
[313792630,1707724332866,-151.0,0.00027397,7]
[313792631,1707724332875,-151.0,0.00027397,7]
[313792632,1707724332885,-151.0,0.00027397,7]
[313792633,1707724332895,-151.0,0.00027397,7]
[313792634,1707724332904,-151.0,0.00027397,7]
[313792635,1707724332913,-151.0,0.00027397,7]
[313792636,1707724332922,-230.469502,0.00027397,7]
[313792637,1707724332932,-503.17,0.00027397,2]
[313792638,1707724332942,-151.0,0.00027397,7]
[313792639,1707724332951,-151.0,0.00027397,7]
[313792640,1707724332961,-151.0,0.00027397,7]
[313792641,1707724332971,-151.0,0.00027397,7]
[313792642,1707724332981,-151.0,0.00027397,7]
[313792643,1707724332991,-151.0,0.00027397,7]
[313792644,1707724333001,-151.0,0.00027397,7]
[313792645,1707724333010,-151.0,0.00027397,7]
[313792646,1707724333021,-151.0,0.00027397,7]
[313792647,1707724333031,-270.916407,0.00027397,7]
[313792648,1707724333041,-151.0,0.00027397,7]
[313792649,1707724333050,-151.0,0.00027397,7]
[313792650,1707724333060,-153.168657,0.00027397,7]
[313792651,1707724333070,-151.0,0.00027397,7]
[313792652,1707724333080,-151.0,0.00027397,7]
[313792653,1707724333090,-154.915842,0.00027397,7]
[313792654,1707724333100,-1235.935605,0.00027397,7]
[313792655,1707724333110,-1235.935605,0.00027397,7]
[313792656,1707724333119,-1235.935605,0.00027397,7]
[313792657,1707724333129,-1235.935605,0.00027397,7]
[313792658,1707724333139,-1235.935605,0.00027397,7]
[313792659,1707724333148,-1235.935605,0.00027397,7]
[313792660,1707724333159,-1235.935605,0.00027397,7]
[313792661,1707724333168,-1235.935605,0.00027397,7]
[313792662,1707724333178,-1235.935605,0.00027397,7]
[313792663,1707724333188,-1235.935605,0.00027397,7]
[313792664,1707724333198,-1235.935605,0.00027397,7]
[313792665,1707724333208,-1235.935605,0.00027397,7]
[313792666,1707724333218,-1235.935605,0.00027397,7]
[313792667,1707724333227,-1235.935605,0.00027397,7]
[313792668,1707724333237,-1235.935605,0.00027397,7]
[313792669,1707724333247,-1235.935605,0.00027397,7]
[313792670,1707724333256,-1235.935605,0.00027397,7]
[313792671,1707724333266,-1235.935605,0.00027397,7]
[313792672,1707724333275,-1235.935605,0.00027397,7]
[313792673,1707724333285,-151.0,0.00027397,7]
[313792674,1707724333295,-1235.935604,0.00027397,7]
[313792675,1707724333305,-151.0,0.00027397,7]
[313792676,1707724333315,-151.0,0.00027397,7]
[313792677,1707724333325,-151.0,0.00027397,7]
[313792678,1707724333335,-152.806011,0.00027397,7]
[313792679,1707724333345,-151.0,0.00027397,7]
[313792680,1707724333355,-151.0,0.00027397,7]
[313792681,1707724333365,-151.0,0.00027397,7]
[313792682,1707724333375,-151.0,0.00027397,7]
[313792683,1707724333384,-4350.51,0.00027397,10]
[313792684,1707724333394,-500.0,0.000274,2]
[313792685,1707724333404,-500.0,0.000274,7]
[313792686,1707724333414,-2934.66,0.000274,2]
[313792687,1707724333423,-2934.66,0.000274,2]
[313792688,1707724333436,-2934.66,0.000274,2]
[313792689,1707724333446,-2934.66,0.000274,2]
[313792690,1707724333456,-2934.66,0.000274,2]
[313792691,1707724333466,-2934.66,0.000274,2]
[313792692,1707724333477,-2934.66,0.000274,2]
[313792693,1707724333486,-2934.66,0.000274,2]
[313792694,1707724333496,-2934.66,0.000274,2]
[313792695,1707724333506,-2934.66,0.000274,2]
[313792696,1707724333517,-10000.0,0.00027483,2]
[313792697,1707724333528,-1180.52,0.00027492,2]
[313792698,1707724333538,-1896.25,0.00027492,2]
[313792699,1707724333548,-847.31,0.00027492,2]
[313792700,1707724333558,-534.72,0.00027492,2]
[313792701,1707724333568,-500.0,0.00027492,2]
[313792702,1707724333578,-1982.34,0.00027494,2]
[313792703,1707724333589,-2165.45,0.00027494,2]
[313792704,1707724333600,-621.75,0.00027494,2]
[313792705,1707724333611,-3012.86,0.00027494,2]
[313792706,1707724333622,-2263.16,0.00027494,2]
[313792707,1707724333632,-797.7,0.00027494,2]
[313792708,1707724333642,-500.0,0.00027494,2]
[313792709,1707724333653,-698.6,0.00027494,2]
[313792710,1707724333664,-500.0,0.00027494,2]
[313792711,1707724333674,-12125.24,0.00027494,2]
[313792712,1707724333683,-1922.52,0.00027494,2]
[313792713,1707724333693,-500.0,0.00027494,2]
[313792714,1707724333703,-2475.59,0.00027494,2]
[313792715,1707724333713,-500.0,0.00027494,2]
[313792716,1707724333723,-500.0,0.00027494,2]
[313792717,1707724333733,-500.0,0.00027494,2]
[313792718,1707724333742,-1975.23,0.00027494,2]
[313792719,1707724333752,-500.0,0.00027494,2]
[313792720,1707724333762,-706.15,0.00027496,2]
[313792721,1707724333772,-769.24,0.00027496,2]
[313792722,1707724333783,-669.16,0.00027496,2]
[313792723,1707724333793,-537.83,0.00027496,2]
[313792724,1707724333803,-565.89,0.00027496,2]
[313792725,1707724333813,-793.91,0.00027496,2]
[313792726,1707724333823,-1052.88,0.00027496,2]
[313792727,1707724333832,-687.92,0.00027496,2]
[313792728,1707724333843,-500.0,0.00027496,2]
[313792729,1707724333852,-890.74,0.00027496,2]
[313792730,1707724333862,-624.91,0.00027496,2]
[313792731,1707724333871,-815.41,0.00027496,2]
[313792732,1707724333881,-583.58,0.00027496,2]
[313792733,1707724333890,-937.88,0.00027496,2]
[313792734,1707724333899,-713.39,0.00027496,2]
[313792735,1707724333909,-677.31,0.00027496,2]
[313792736,1707724333919,-500.0,0.00027496,2]
[313792737,1707724333929,-719.29,0.00027496,2]
[313792738,1707724333939,-1300.69,0.00027496,2]
[313792739,1707724333949,-1183.66,0.00027496,2]
[313792740,1707724333959,-587.65,0.00027496,2]
[313792741,1707724333970,-888.66,0.00027496,2]
[313792742,1707724333980,-887.34,0.00027496,2]
[313792743,1707724333990,-1482.85,0.00027496,2]
[313792744,1707724334000,-672.72,0.00027496,2]
[313792745,1707724334009,-507.87,0.00027496,2]
[313792746,1707724334019,-783.44,0.00027496,2]
[313792747,1707724334030,-504.77,0.00027496,2]
[313792748,1707724334040,-500.0,0.00027496,2]
[313792749,1707724334049,-751.88,0.00027496,2]
[313792750,1707724334059,-617.92,0.00027496,2]
[313792751,1707724334069,-1243.18,0.00027496,2]
[313792752,1707724334079,-232.72794077,0.00027496,2]
[313792753,1707724334088,-702.45,0.00027496,2]
[313792754,1707724334099,-487.53444573,0.00027496,2]
[313792755,1707724334108,-974.3,0.00027496,2]
[313792756,1707724334118,-7827.18,0.00027496,2]
[313792757,1707724334127,-168.01306721,0.00027496,2]
[313792758,1707724334138,-3082.76,0.00027496,2]
[313792759,1707724334148,-595.48,0.00027496,2]
[313792760,1707724334157,-967.31,0.00027496,2]
[313792761,1707724334167,-2173.97,0.00027496,2]
[313792762,1707724334176,-1116.74,0.00027496,2]
[313792763,1707724334186,-1551.42,0.00027496,2]
[313792764,1707724334196,-500.0,0.00027496,2]
[313792765,1707724334205,-580.47,0.00027496,2]
[313792766,1707724334215,-1390.31,0.00027496,2]
[313792767,1707724334225,-5464.12,0.00027496,2]
[313792768,1707724334234,-537.36,0.00027496,2]
[313792769,1707724334244,-500.0,0.00027496,2]
[313792770,1707724334253,-500.0,0.00027496,2]
[313792771,1707724334263,-500.0,0.00027496,2]
[313792772,1707724334273,-2945.14,0.00027496,2]
[313792773,1707724334283,-974.61,0.00027496,2]
[313792774,1707724334292,-5570.51,0.00027496,2]
[313792775,1707724334302,-1834.77,0.00027496,2]
[313792776,1707724334311,-580.52,0.00027496,2]
[313792777,1707724334321,-1019.27,0.00027496,2]
[313792778,1707724334331,-20177.86,0.00027496,2]
[313792779,1707724334340,-806.3,0.00027496,2]
[313792780,1707724334350,-570.23,0.00027496,2]
[313792781,1707724334359,-500.0,0.00027496,2]
[313792782,1707724334563,-1991.86,0.00027496,2]
[313792783,1707724334598,-587.74,0.00027496,2]
[313792784,1707724334608,-922.68,0.00027496,2]
[313792785,1707724334618,-630.66,0.00027496,2]
[313792786,1707724334628,-1002.52,0.00027496,2]
[313792787,1707724334637,-511.3,0.00027496,2]
[313792788,1707724334646,-1154.55,0.00027496,2]
[313792789,1707724334657,-880.38,0.00027496,2]
[313792790,1707724334667,-1257.42,0.00027496,2]
[313792791,1707724334677,-719.41,0.00027496,2]
[313792792,1707724334687,-6710.69,0.00027496,2]
[313792793,1707724334696,-744.24,0.00027496,2]
[313792794,1707724334706,-500.0,0.00027496,2]
[313792795,1707724334715,-506.58,0.00027496,2]
[313792796,1707724334724,-395.76324122,0.00027496,2]
[313792797,1707724334733,-823.26,0.00027496,2]
[313792798,1707724334742,-500.0,0.00027496,2]
[313792799,1707724334751,-655.13,0.00027496,2]
[313792800,1707724334760,-1365.54,0.00027496,2]
[313792801,1707724334769,-587.44,0.00027496,2]
[313792802,1707724334779,-1350.62,0.00027496,2]
[313792803,1707724334789,-296.89453018,0.00027496,2]
[313792804,1707724334798,-500.0,0.00027496,2]
[313792805,1707724334807,-828.24,0.00027496,2]
[313792806,1707724334817,-772.77,0.00027496,2]
[313792807,1707724334826,-642.89359809,0.00027496,2]
[313792808,1707724334835,-2935.99,0.00027496,2]
[313792809,1707724334844,-1721.35,0.00027496,2]
[313792810,1707724334853,-500.0,0.00027496,2]
[313792811,1707724334863,-3534.38,0.00027496,2]
[313792812,1707724334872,-1330.37,0.00027496,2]
[313792813,1707724334881,-1466.7,0.00027496,2]
[313792814,1707724334890,-992.91,0.00027496,2]
[313792815,1707724334899,-2375.35,0.00027496,2]
[313792816,1707724334909,-3717.73,0.00027496,2]
[313792817,1707724334918,-500.0,0.00027496,2]
[313792818,1707724334927,-3566.79,0.00027496,2]
[313792819,1707724334937,-1540.99,0.00027496,2]
[313792820,1707724334946,-2751.21,0.00027496,2]
[313792821,1707724334956,-603.29,0.00027496,2]
[313792822,1707724334965,-2597.39,0.00027496,2]
[313792823,1707724334974,-1022.74,0.00027496,2]
[313792824,1707724334984,-1093.06,0.00027496,2]
[313792825,1707724334993,-1658.55,0.00027496,2]
[313792826,1707724335003,-754.43,0.00027496,2]
[313792827,1707724335012,-500.0,0.00027496,2]
[313792828,1707724335022,-1509.11,0.00027496,2]
[313792829,1707724335032,-500.0,0.00027496,2]
[313792830,1707724335042,-933.4,0.00027496,2]
[313792831,1707724335052,-1039.67,0.00027496,2]
[313792832,1707724335061,-581.28,0.00027496,2]
[313792833,1707724335071,-558.4,0.00027496,2]
[313792834,1707724335080,-2115.36,0.00027496,2]
[313792835,1707724335090,-1895.77,0.00027496,2]
[313792836,1707724335099,-1608.32,0.00027496,2]
[313792837,1707724335108,-620.86,0.00027496,2]
[313792838,1707724335117,-1871.04,0.00027496,2]
[313792839,1707724335127,-535.09,0.00027496,2]
[313792840,1707724335137,-13505.82,0.00027496,2]
[313792841,1707724335147,-1807.44,0.00027496,2]
[313792842,1707724335156,-921.33,0.00027496,2]
[313792843,1707724335166,-521.2,0.00027496,2]
[313792844,1707724335176,-2338.23,0.00027496,2]
[313792845,1707724335185,-1098.36,0.00027496,2]
[313792846,1707724335195,-3233.45,0.00027496,2]
[313792847,1707724335204,-2160.67,0.00027496,2]
[313792848,1707724335213,-1598.78,0.00027496,2]